bitfinex/quotes_SOLUSD_20250728
["timestamp","ask_amount","ask_price","bid_price","bid_amount"]
[1753735820554,3.55660033,184.15,184.12,8.86997786]
[1753735820756,3.55678107,184.16,184.13,0.71]
[1753735820933,3.95208649,184.15,184.13,0.71]
[1753735821325,9.38258115,184.15,184.13,0.71]
[1753735821662,9.38258115,184.15,184.11,15.90717786]
[1753735821663,12.11145279,184.14,184.11,7.7472]
[1753735821948,15.66750064,184.13,184.08,0.71]
[1753735822160,7.50752278,184.12,184.08,0.71]
[1753735822324,3.9514662,184.11,184.07,8.15997786]
[1753735822527,8.15997786,184.13,184.08,0.71]
[1753735822739,3.9527724,184.12,184.09,0.71]
[1753735823055,8.150103,184.15,184.11,8.15997786]
[1753735823226,3.95366662,184.14,184.12,8.15997786]
[1753735823426,33.51288454,184.14,184.13,0.71]
[1753735823828,7.51288454,184.14,184.13,0.71]
[1753735824047,3.95366662,184.14,184.13,0.71]
[1753735824551,11.77624186,184.16,184.13,0.71]
[1753735824552,7.51533867,184.15,184.13,0.71]
[1753735824756,3.95366662,184.14,184.13,0.71]
[1753735825234,3.95366662,184.14,184.13,8.86997786]
[1753735825429,3.56167205,184.16,184.13,8.86997786]
[1753735825752,0.03,184.17,184.15,32.78386183]
[1753735825954,0.03,184.17,184.16,25.65466183]
[1753735826151,0.03,184.17,184.16,25.93898497]
[1753735827268,0.03,184.17,184.16,31.36904578]
[1753735828061,0.03,184.17,184.16,25.93898497]
[1753735828372,0.03,184.17,184.16,31.36904578]
[1753735828736,0.03,184.17,184.16,25.65466183]
[1753735829043,0.03,184.17,184.16,25.93898497]
[1753735829253,0.03,184.17,184.16,31.36904578]
[1753735829945,0.03,184.17,184.16,25.93898497]
[1753735831265,0.03,184.17,184.16,25.65466183]
[1753735831964,0.03,184.17,184.16,24.94466183]
[1753735832169,0.03,184.17,184.16,25.66466183]
[1753735836734,0.03,184.17,184.16,31.92205186]
[1753735837378,0.03,184.23,184.16,31.92205186]
[1753735837379,0.03,184.23,184.19,0.28432314]
[1753735837669,0.03,184.23,184.22,24.94466183]
[1753735837881,0.72,184.23,184.18,8.15997786]
[1753735838071,0.69,184.22,184.18,8.15997786]
[1753735838236,0.03,184.23,184.21,8.15997786]
[1753735838438,6.1480232,184.23,184.2,8.15997786]
[1753735839307,0.69,184.22,184.18,8.15997786]
[1753735839680,0.69,184.22,184.18,8.87997786]
[1753735839880,5.4580232,184.23,184.19,8.15997786]
[1753735840193,0.03,184.21,184.19,8.15997786]
[1753735840372,0.03,184.21,184.17,8.15997786]
[1753735840571,0.03,184.21,184.18,8.87997786]
[1753735840770,0.03,184.21,184.18,8.15997786]
[1753735840997,0.69,184.2,184.16,46.85997786]
[1753735841369,0.03,184.21,184.17,8.87997786]
[1753735842381,5.45858693,184.21,184.17,8.87997786]
[1753735842578,0.69,184.2,184.16,46.85997786]
[1753735842940,13.61856479,184.21,184.16,47.57997786]
[1753735843403,13.61856479,184.21,184.17,0.72]
[1753735844408,0.03,184.21,184.17,0.72]
[1753735844703,8.18997786,184.21,184.17,0.72]
[1753735844917,8.87997786,184.21,184.17,0.72]
[1753735845204,8.87997786,184.21,184.16,46.85997786]
[1753735845205,8.84997786,184.2,184.16,38.7]
[1753735845662,8.15997786,184.18,184.13,16.78468397]
[1753735845864,0.69,184.17,184.13,63.64466183]
[1753735846067,8.15997786,184.18,184.13,64.36466183]
[1753735846284,8.84997786,184.19,184.13,64.36466183]
[1753735846568,5.42947116,184.18,184.13,64.36466183]
[1753735846773,8.15997786,184.16,184.11,7.7924]
[1753735846976,8.84997786,184.15,184.09,8.15997786]
[1753735847276,157.15997786,184.17,184.12,8.15997786]
[1753735847779,8.15997786,184.16,184.11,8.15997786]
[1753735847981,8.15997786,184.16,184.11,8.87997786]
[1753735848186,11.72166251,184.16,184.11,8.87997786]
[1753735848584,5.43035568,184.15,184.12,0.72]
[1753735849688,149.0,184.17,184.14,8.15997786]
[1753735849890,154.42983344,184.17,184.15,0.72]
[1753735850202,3.96560552,184.16,184.15,24.94466183]
[1753735850403,64.7,184.2,184.15,24.94466183]
[1753735850404,3.56848592,184.19,184.15,24.94466183]
[1753735850624,0.03,184.21,184.18,8.15997786]
[1753735850903,7.56695508,184.21,184.19,8.15997786]
[1753735851119,0.03,184.21,184.2,25.66466183]
[1753735851279,0.03,184.21,184.2,25.94898497]
[1753735851612,0.03,184.23,184.2,25.66466183]
[1753735851907,3.97262698,184.22,184.21,38.7]
[1753735852076,7.54218093,184.22,184.21,38.7]
[1753735852278,7.54218093,184.22,184.19,8.15997786]
[1753735852479,3.56955395,184.21,184.19,8.15997786]
[1753735852683,7.55216306,184.2,184.19,24.94466183]
[1753735853010,3.97605507,184.2,184.19,25.66466183]
[1753735853186,7.55216306,184.2,184.19,25.66466183]
[1753735855385,7.55216306,184.2,184.19,25.94898497]
[1753735855685,3.97605507,184.2,184.19,31.37816136]
[1753735855882,0.03,184.23,184.2,0.28432314]
[1753735856080,7.56694125,184.22,184.21,56.20468397]
[1753735856307,7.56694125,184.22,184.21,64.36466183]
[1753735857003,0.03,184.23,184.22,0.28432314]
[1753735857312,7.60343288,184.23,184.22,64.36466183]
[1753735857484,4.01655298,184.23,184.22,64.36466183]
[1753735857904,7.60343323,184.23,184.22,64.36466183]
[1753735858128,7.60304405,184.23,184.22,64.64898497]
[1753735858484,4.0161638,184.23,184.22,65.19181419]
[1753735860222,7.60496989,184.23,184.22,63.64466183]
[1753735860393,11.59335223,184.23,184.22,63.64466183]
[1753735860591,11.59335223,184.23,184.22,38.7]
[1753735860902,11.59529637,184.23,184.22,38.7]
[1753735861086,11.59529637,184.23,184.2,46.83997786]
[1753735861293,11.56529637,184.22,184.21,8.15997786]
[1753735861693,7.57691403,184.22,184.21,8.15997786]
[1753735861902,7.57691403,184.22,184.21,24.94466183]
[1753735862086,7.57691403,184.22,184.21,25.91898497]
[1753735863228,13.68840857,184.22,184.17,16.33935445]
[1753735863439,7.57999389,184.21,184.18,16.78468397]
[1753735863601,7.57999389,184.2,184.18,16.78468397]
[1753735863919,7.57999389,184.19,184.18,16.78468397]
[1753735864404,7.57999389,184.19,184.17,46.3164]
[1753735864718,7.58512766,184.18,184.17,38.68]
[1753735865012,13.69459882,184.18,184.17,38.68]
[1753735865398,7.58512766,184.18,184.15,55.46468397]
[1753735865600,3.9911878,184.17,184.16,0.82732922]
[1753735865816,3.59582039,184.22,184.17,16.78468397]
[1753735866118,7.59079892,184.21,184.18,46.83997786]
[1753735866310,7.59079892,184.2,184.19,17.47468397]
[1753735866616,7.59079892,184.2,184.19,25.63466183]
[1753735866811,7.59079892,184.2,184.19,25.91898497]
[1753735867012,0.03,184.23,184.2,0.28432314]
[1753735867212,0.03,184.23,184.22,24.94466183]
[1753735867399,4.02833951,184.23,184.22,25.63466183]
[1753735868022,4.02833951,184.23,184.22,25.91898497]
[1753735868224,0.03,184.23,184.22,25.91898497]
[1753735868992,1e-08,184.23,184.22,51.91898497]
[1753735869198,0.03,184.25,184.24,43.06900711]
[1753735869398,0.03,184.25,184.24,98.61173312]
[1753735869810,0.03,184.25,184.24,99.30173312]
[1753735870334,0.68,184.25,184.24,17.32745426]
[1753735870494,8.83997786,184.25,184.19,0.54291763]
[1753735870701,12.83975093,184.24,184.19,38.74]
[1753735871008,8.83997786,184.23,184.19,38.74]
[1753735871218,0.68,184.22,184.19,38.74]
[1753735871418,8.83997786,184.22,184.19,38.74]
[1753735871605,8.83997786,184.21,184.19,38.74]
[1753735871810,0.68,184.21,184.19,38.74]
[1753735871996,0.68,184.21,184.17,55.54468397]
[1753735872522,8.15997786,184.22,184.17,63.70466183]
[1753735872731,8.15997786,184.22,184.18,0.69]
[1753735872946,0.68,184.24,184.19,8.15997786]
[1753735873122,14.26774244,184.24,184.2,16.78468397]
[1753735873307,3.60174588,184.23,184.2,16.78468397]
[1753735873626,11.76172374,184.23,184.2,16.78468397]
[1753735874009,8.15997786,184.24,184.2,17.47468397]
[1753735874415,8.15997786,184.23,184.2,16.78468397]
[1753735875839,8.15997786,184.23,184.2,17.47468397]
[1753735876417,8.15997786,184.24,184.2,16.78468397]
[1753735876934,8.15997786,184.24,184.21,38.72]
[1753735878335,13.58772969,184.24,184.21,38.72]
[1753735879638,8.15997786,184.23,184.21,38.72]
[1753735879928,8.15997786,184.24,184.21,38.72]
[1753735880139,0.03,184.26,184.22,25.63466183]
[1753735880311,0.03,184.26,184.23,38.68]
[1753735880512,0.03,184.26,184.23,39.37]
[1753735880724,0.03,184.26,184.24,0.69]
[1753735881314,0.03,184.26,184.23,38.68]
[1753735881532,0.03,184.26,184.25,24.94466183]
[1753735881743,0.03,184.26,184.25,64.45172581]
[1753735881907,0.03,184.26,184.25,65.14172581]
[1753735882567,0.03,184.26,184.25,91.14172581]
[1753735882836,0.03,184.29,184.28,44.61410711]
[1753735883044,0.03,184.29,184.28,92.01673745]
[1753735883426,0.03,184.29,184.28,98.1332623]
[1753735883833,0.03,184.31,184.3,49.41850711]
[1753735884013,0.03,184.31,184.3,96.82107856]
[1753735884344,0.03,184.31,184.3,97.51107856]
[1753735885313,0.03,184.31,184.3,16.78468397]
[1753735885513,0.03,184.31,184.3,55.50468397]
[1753735885717,0.03,184.31,184.3,38.72]
[1753735885922,8.86997786,184.31,184.26,8.15997786]
[1753735886136,8.86997786,184.31,184.27,38.72]
[1753735886137,8.83997786,184.3,184.27,38.72]
[1753735886447,0.68,184.29,184.27,38.72]
[1753735887417,0.03,184.31,184.28,25.63466183]
[1753735887757,0.03,184.31,184.29,46.87997786]
[1753735888544,0.03,184.31,184.29,38.72]
[1753735888766,8.86997786,184.31,184.29,38.72]
[1753735889059,0.68,184.3,184.29,38.72]
[1753735889717,8.83997786,184.3,184.29,38.72]
[1753735890215,8.83997786,184.3,184.27,38.72]
[1753735890753,14.26594463,184.3,184.27,38.72]
[1753735890924,0.68,184.3,184.27,38.72]
[1753735891123,8.18997786,184.31,184.27,38.72]
[1753735892629,0.03,184.31,184.29,8.15997786]
[1753735892829,0.03,184.31,184.29,47.55997786]
[1753735893135,0.03,184.31,184.3,16.78468397]
[1753735893343,0.03,184.31,184.3,25.64466183]
[1753735893725,0.03,184.31,184.3,8.15997786]
[1753735893921,0.03,184.31,184.23,13.5694283]
[1753735893922,34.89997786,184.31,184.25,16.78468397]
[1753735894146,8.15997786,184.27,184.25,55.52468397]
[1753735894347,8.15997786,184.28,184.25,38.74]
[1753735894667,0.71,184.27,184.25,38.74]
[1753735895161,8.86997786,184.27,184.24,38.74]
[1753735895834,8.15997786,184.27,184.24,38.74]
[1753735896040,8.15997786,184.29,184.25,16.78468397]
[1753735896451,8.15997786,184.28,184.25,16.78468397]
[1753735897245,32.16571623,184.31,184.25,22.91205402]
[1753735897447,0.03,184.31,184.27,16.78468397]
[1753735897625,0.03,184.31,184.29,16.78468397]
[1753735898048,0.03,184.31,184.3,38.72]
[1753735901260,0.03,184.31,184.3,56.20468397]
[1753735902448,0.03,184.31,184.3,70.07492094]
[1753735902654,0.03,184.31,184.3,64.64898497]
[1753735904570,0.03,184.31,184.3,38.72]
[1753735904742,0.03,184.31,184.3,55.50468397]
[1753735908380,0.03,184.31,184.3,56.48900711]
[1753735908579,0.03,184.31,184.3,70.61751453]
[1753735908874,0.03,184.31,184.3,96.61751453]
[1753735910080,0.03,184.31,184.3,103.00941453]
[1753735910387,1e-08,184.31,184.3,103.00941453]
[1753735910546,0.2,184.33,184.32,43.06900711]
[1753735910747,0.2,184.33,184.32,90.43151969]
[1753735910982,0.2,184.33,184.32,91.13151969]
[1753735912067,0.2,184.33,184.32,96.55686691]
[1753735915884,0.2,184.37,184.33,17.06900711]
[1753735916187,0.2,184.37,184.36,30.65315507]
[1753735916366,0.2,184.37,184.36,69.31315507]
[1753735916550,0.2,184.37,184.36,70.01315507]
[1753735917072,0.2,184.37,184.36,70.55557208]
[1753735917371,0.2,184.37,184.36,96.55557208]
[1753735920053,0.2,184.37,184.36,104.71554994]
[1753735920366,0.2,184.37,184.36,105.79473293]
[1753735921456,0.2,184.37,184.36,97.63475507]
[1753735923790,0.2,184.37,184.36,50.94466183]
[1753735924084,0.86,184.37,184.36,69.00883193]
[1753735924262,0.2,184.37,184.36,69.29315507]
[1753735924459,0.2,184.37,184.36,70.52557208]
[1753735926876,0.2,184.37,184.36,67.37410718]
[1753735927185,0.2,184.37,184.36,66.68410718]
[1753735927362,0.2,184.37,184.36,67.37410718]
[1753735929068,0.2,184.37,184.36,60.71752007]
[1753735929581,0.2,184.37,184.36,66.68410718]
[1753735929957,0.5,184.39,184.36,66.68410718]
[1753735929958,0.03,184.39,184.38,42.78468397]
[1753735930156,0.03,184.39,184.38,87.25987824]
[1753735930392,0.03,184.39,184.35,5.00851296]
[1753735930393,0.69,184.39,184.35,5.00851296]
[1753735930698,5.00851296,184.38,184.36,38.64]
[1753735930863,5.00851296,184.38,184.37,38.64]
[1753735931471,5.66851296,184.38,184.37,38.64]
[1753735933071,5.66851296,184.38,184.37,55.42468397]
[1753735933272,0.03,184.39,184.38,16.78468397]
[1753735933669,0.69,184.39,184.38,16.78468397]
[1753735934187,11.12188724,184.39,184.38,38.64]
[1753735935192,41.12988724,184.39,184.34,0.06]
[1753735935361,5.00851296,184.35,184.34,0.06]
[1753735935807,5.66851296,184.35,184.34,0.06]
[1753735936471,11.09297729,184.35,184.34,0.06]
[1753735936896,14.25568724,184.35,184.34,0.06]
[1753735940298,21.89343144,184.35,184.34,0.06]
[1753735942200,18.27638109,184.35,184.34,0.06]
[1753735942406,21.89602445,184.35,184.34,0.06]
[1753735943605,8.17122291,184.35,184.34,0.06]
[1753735943899,14.25568724,184.35,184.34,0.06]
[1753735944400,31.83800086,184.35,184.3,0.06]
[1753735944607,8.17122291,184.31,184.3,0.06]
[1753735946808,13.59686449,184.31,184.3,0.06]
[1753735947306,14.25686449,184.31,184.3,0.06]
[1753735948106,18.27662021,184.31,184.3,0.06]
[1753735948793,13.59686449,184.31,184.3,0.06]
[1753735949099,8.17122291,184.31,184.3,0.06]
[1753735950378,8.17122291,184.32,184.3,0.06]
[1753735950695,8.17122291,184.37,184.31,24.95590688]
[1753735950895,0.03,184.38,184.35,16.78468397]
[1753735951087,0.03,184.38,184.35,25.49835331]
[1753735951411,0.03,184.38,184.37,16.78468397]
[1753735951998,8.20122291,184.38,184.32,1.21253472]
[1753735952308,8.17122291,184.35,184.32,0.67]
[1753735952532,8.17122291,184.33,184.3,0.06]
[1753735952812,8.17122291,184.31,184.3,0.06]
[1753735953614,8.85122291,184.31,184.3,0.06]
[1753735953990,14.27686449,184.31,184.3,0.06]
[1753735955211,8.17122291,184.31,184.3,0.06]
[1753735955410,8.17122291,184.34,184.3,0.06]
[1753735955808,8.17122291,184.33,184.31,0.67]
[1753735956105,8.17122291,184.33,184.3,0.06]
[1753735956317,13.59629467,184.33,184.3,0.73]
[1753735957613,8.17122291,184.33,184.3,0.73]
[1753735957787,8.17122291,184.31,184.3,0.06]
[1753735958305,14.27686449,184.31,184.3,0.06]
[1753735960529,8.17122291,184.31,184.3,0.06]
[1753735962419,13.59686449,184.31,184.3,0.06]
[1753735963203,13.88686449,184.31,184.3,0.06]
[1753735963407,13.59686449,184.31,184.3,0.06]
[1753735965028,8.17122291,184.31,184.3,0.73]
[1753735965191,8.17122291,184.31,184.3,0.06]
[1753735965701,8.17122291,184.4,184.36,10.0]
[1753735965918,4.01926103,184.39,184.37,0.67]
[1753735966092,4.01926103,184.39,184.38,27.45468397]
[1753735966493,8.37122291,184.44,184.4,10.0]
[1753735966692,4.02090227,184.43,184.41,25.62590688]
[1753735966903,4.02090227,184.43,184.42,26.78468397]
[1753735967420,12.19212518,184.43,184.41,10.0]
[1753735967723,4.02090227,184.42,184.41,10.67]
[1753735968102,4.02090227,184.42,184.41,10.0]
[1753735968828,4.02090227,184.42,184.41,10.67]
[1753735969140,17.61453055,184.42,184.39,10.0]
[1753735969329,12.19493432,184.41,184.4,10.0]
[1753735970199,38.48493432,184.41,184.37,10.0]
[1753735970404,8.17122291,184.38,184.36,10.0]
[1753735970600,8.17122291,184.37,184.33,10.0]
[1753735970833,8.17122291,184.36,184.35,10.0]
[1753735971027,8.17122291,184.36,184.34,0.06]
[1753735971231,13.59568724,184.35,184.34,0.06]
[1753735971437,5.42423843,184.36,184.35,26.78468397]
[1753735971646,5.42423843,184.36,184.35,27.45468397]
[1753735971830,5.42423843,184.36,184.35,10.0]
[1753735972433,5.42423843,184.36,184.34,0.06]
[1753735972434,13.59546134,184.36,184.34,0.06]
[1753735972732,8.17122291,184.35,184.34,0.06]
[1753735973108,13.59568724,184.35,184.34,10.06]
[1753735973501,39.88568724,184.35,184.34,1e-08]
[1753735973704,39.88568724,184.35,184.3,0.06]
[1753735973705,26.0,184.31,184.3,1e-08]
[1753735973922,72.99122291,184.31,184.3,1e-08]
[1753735974236,76.90369291,184.31,184.3,1e-08]
[1753735974619,76.90360725,184.31,184.3,1e-08]
[1753735975019,38.08360725,184.31,184.3,1e-08]
[1753735975212,43.50924883,184.31,184.3,1e-08]
[1753735975632,47.53928528,184.31,184.3,1e-08]
[1753735975937,0.28432314,184.3,184.22,0.06]
[1753735976140,8.17122291,184.23,184.22,10.06]
[1753735976518,8.17122291,184.23,184.22,10.73]
[1753735978711,13.59922052,184.23,184.22,0.06]
[1753735978914,13.59922052,184.23,184.22,10.06]
[1753735980530,13.5987772,184.25,184.23,10.0]
[1753735980918,13.5987772,184.25,184.23,10.67]
[1753735981123,13.5987772,184.25,184.24,0.66]
[1753735981621,8.17122291,184.28,184.26,10.0]
[1753735981939,8.17122291,184.28,184.27,10.66]
[1753735982145,12.19859155,184.28,184.27,10.66]
[1753735982326,12.19859155,184.28,184.23,10.0]
[1753735982514,8.17122291,184.24,184.22,0.06]
[1753735982719,4.31616552,184.27,184.22,0.06]
[1753735982720,13.59922052,184.23,184.22,10.06]
[1753735982945,26.0,184.32,184.26,10.0]
[1753735983115,8.17122291,184.27,184.25,10.0]
[1753735983326,8.17122291,184.26,184.25,10.0]
[1753735983921,8.17122291,184.27,184.25,10.66]
[1753735984247,8.17122291,184.27,184.26,10.0]
[1753735984436,12.19633255,184.27,184.26,10.0]
[1753735984926,13.59804225,184.27,184.26,10.66]
[1753735985337,8.17122291,184.28,184.26,10.66]
[1753735985563,8.17122291,184.32,184.29,10.0]
[1753735985743,4.02508762,184.31,184.3,10.0]
[1753735985941,4.02508762,184.31,184.3,10.66]
[1753735987420,17.91195211,184.31,184.26,10.0]
[1753735987626,8.17122291,184.29,184.27,10.66]
[1753735988432,8.17122291,184.29,184.28,10.0]
[1753735988642,12.19330415,184.29,184.28,10.0]
[1753735989523,4.02208124,184.29,184.28,10.0]
[1753735989847,13.59720837,184.3,184.28,10.66]
[1753735990145,4.01882668,184.29,184.28,10.66]
[1753735990341,13.59720837,184.3,184.28,10.66]
[1753735990853,8.17122291,184.29,184.26,10.0]
[1753735991024,5.42598546,184.3,184.26,10.0]
[1753735991025,8.17122291,184.28,184.26,10.66]
[1753735991221,8.17122291,184.28,184.26,10.0]
[1753735991427,8.17122291,184.28,184.27,0.66]
[1753735992044,13.59777458,184.28,184.25,10.0]
[1753735992348,8.17122291,184.26,184.25,10.0]
[1753735992651,8.17122291,184.27,184.26,0.06]
[1753735992853,8.17122291,184.27,184.26,10.72]
[1753735993342,0.03,184.29,184.28,10.0]
[1753735993731,5.45623039,184.29,184.28,10.0]
[1753735993933,0.03,184.29,184.28,10.0]
[1753735994233,0.03,184.29,184.28,10.66]
[1753735994627,0.03,184.29,184.28,27.44468397]
[1753735997444,0.03,184.29,184.28,35.61590688]
[1753735998139,0.03,184.29,184.28,41.32675487]
[1753735999141,4.01767671,184.36,184.29,17.06900711]
[1753735999344,4.01767671,184.36,184.35,10.0]
[1753735999659,0.03,184.37,184.36,26.78468397]
[1753735999959,8.20122291,184.37,184.35,10.0]
[1753736001132,13.62509881,184.37,184.35,10.0]
[1753736001558,12.47779512,184.36,184.33,10.0]
[1753736001763,8.17122291,184.36,184.33,10.0]
[1753736002052,8.17122291,184.36,184.34,0.66]
[1753736002235,8.17122291,184.36,184.33,10.66]
[1753736002429,8.17122291,184.35,184.33,10.66]
[1753736002635,8.17122291,184.34,184.33,10.0]
[1753736003232,13.5959815,184.34,184.33,10.0]
[1753736004235,5.42475859,184.34,184.33,10.0]
[1753736004669,26.03,184.37,184.33,10.0]
[1753736004883,5.45394504,184.37,184.34,10.66]
[1753736005169,5.45394504,184.37,184.35,0.66]
[1753736005334,5.45394504,184.37,184.35,10.0]
[1753736005535,5.45394504,184.37,184.36,0.66]
[1753736005935,5.45394504,184.37,184.35,10.0]
[1753736006140,5.45394504,184.37,184.35,10.66]
[1753736006545,5.45394504,184.37,184.35,10.0]
[1753736006766,13.62516795,184.37,184.35,10.0]
[1753736008119,0.03,184.37,184.36,35.61590688]
[1753736008233,0.03,184.37,184.36,43.47730688]
[1753736009260,0.03,184.37,184.36,82.25730688]
[1753736010442,0.03,184.37,184.36,82.54163002]
[1753736010774,0.03,184.43,184.37,17.06900711]
[1753736010951,0.03,184.43,184.41,16.78468397]
[1753736011259,0.03,184.43,184.42,10.0]
[1753736011464,0.03,184.43,184.42,10.66]
[1753736012067,0.03,184.43,184.42,10.0]
[1753736012582,0.03,184.43,184.42,10.66]
[1753736012769,0.03,184.43,184.42,10.0]
[1753736012965,8.20122291,184.43,184.42,10.0]
[1753736013686,5.45211137,184.43,184.42,10.0]
[1753736014260,0.03,184.43,184.42,10.0]
[1753736014563,5.45211137,184.43,184.42,10.0]
[1753736015082,13.91333428,184.43,184.39,10.0]
[1753736015277,13.91333428,184.43,184.38,38.76]
[1753736015278,8.17122291,184.4,184.38,48.76]
[1753736015662,13.5942164,184.4,184.39,10.0]
[1753736016474,13.5942164,184.4,184.38,48.76]
[1753736016782,13.5942164,184.4,184.39,10.0]
[1753736018079,13.5942164,184.4,184.38,48.76]
[1753736018379,8.46122291,184.39,184.33,10.0]
[1753736018675,8.17122291,184.35,184.32,48.74]
[1753736018883,8.17122291,184.35,184.32,49.4]
[1753736019072,8.17122291,184.35,184.33,10.0]
[1753736019376,8.17122291,184.35,184.32,39.4]
[1753736019377,8.17122291,184.37,184.34,10.66]
[1753736019584,8.17122291,184.37,184.35,0.66]
[1753736020080,5.4241701,184.36,184.35,10.0]
[1753736020483,26.0,184.4,184.35,10.66]
[1753736020660,8.17122291,184.39,184.36,0.66]
[1753736020980,8.17122291,184.39,184.37,0.66]
[1753736021377,8.17122291,184.39,184.35,49.4]
[1753736021580,5.42328759,184.39,184.36,0.66]
[1753736021777,157.17122291,184.42,184.38,10.0]
[1753736022084,157.17122291,184.42,184.39,10.66]
[1753736022779,8.17122291,184.4,184.39,10.0]
[1753736023783,13.5942164,184.4,184.38,10.0]
[1753736023987,8.17122291,184.39,184.37,10.0]
[1753736024287,13.5942164,184.4,184.38,10.0]
[1753736026086,13.5942164,184.4,184.39,10.0]
[1753736026384,13.5942164,184.4,184.38,10.0]
[1753736026589,13.5942164,184.4,184.39,10.0]
[1753736026888,5.42299349,184.4,184.39,10.0]
[1753736027488,5.42299349,184.4,184.39,10.66]
[1753736027787,149.0,184.42,184.39,10.66]
[1753736028099,8.17122291,184.41,184.38,10.0]
[1753736028270,8.17122291,184.4,184.39,10.0]
[1753736028867,8.17122291,184.4,184.37,10.0]
[1753736029079,8.17122291,184.4,184.39,10.0]
[1753736030693,5.42328759,184.39,184.37,10.0]
[1753736030896,5.42328759,184.39,184.36,48.74]
[1753736031069,13.5945105,184.39,184.36,49.4]
[1753736031267,13.5945105,184.39,184.37,10.0]
[1753736031572,13.5945105,184.39,184.36,48.74]
[1753736031792,13.5945105,184.39,184.36,49.4]
[1753736031985,5.42328759,184.39,184.37,10.66]
[1753736032180,5.42328759,184.39,184.38,10.66]
[1753736032580,5.4230387,184.4,184.38,10.66]
[1753736032872,154.42267909,184.42,184.39,27.44468397]
[1753736033079,154.42267909,184.42,184.4,0.66]
[1753736033395,149.0,184.42,184.41,0.66]
[1753736034297,149.0,184.42,184.41,10.66]
[1753736034673,0.03,184.43,184.42,26.78468397]
[1753736034890,0.03,184.43,184.42,27.44468397]
[1753736035082,0.03,184.43,184.42,17.44468397]
[1753736035276,0.03,184.43,184.42,27.44468397]
[1753736035479,0.03,184.43,184.42,66.10468397]
[1753736035679,0.03,184.43,184.42,71.11569468]
[1753736036195,0.03,184.43,184.42,71.40001782]
[1753736038281,0.03,184.43,184.42,76.82242319]
[1753736038693,0.03,184.43,184.42,71.40001782]
[1753736038893,0.03,184.43,184.42,74.54804373]
[1753736040502,0.03,184.43,184.42,74.26372059]
[1753736041097,0.03,184.43,184.42,48.66]
[1753736041299,0.32,184.43,184.41,10.0]
[1753736041598,0.03,184.43,184.42,10.0]
[1753736042091,0.03,184.43,184.42,10.67]
[1753736042292,0.03,184.43,184.42,27.45468397]
[1753736042496,0.03,184.43,184.42,35.61372059]
[1753736043787,0.03,184.43,184.42,26.78468397]
[1753736044094,0.03,184.43,184.42,10.0]
[1753736044293,0.03,184.43,184.42,41.3204491]
[1753736044602,0.03,184.45,184.44,27.06900711]
[1753736044803,0.03,184.46,184.45,17.06900711]
[1753736045101,0.03,184.46,184.45,35.89804373]
[1753736046405,0.03,184.46,184.45,41.31956717]
[1753736046608,0.03,184.51,184.45,49.24496717]
[1753736046914,0.03,184.51,184.47,43.38708035]
[1753736047412,0.03,184.51,184.47,44.05708035]
[1753736048275,0.03,184.51,184.47,70.05708035]
[1753736048809,0.03,184.51,184.47,76.02010956]
[1753736049693,0.03,184.51,184.49,43.06900711]
[1753736049895,0.03,184.51,184.49,90.43007852]
[1753736050096,0.03,184.51,184.5,34.99440711]
[1753736050292,0.03,184.51,184.5,43.15344373]
[1753736050498,0.03,184.51,184.5,43.82344373]
[1753736050687,0.03,184.51,184.5,49.24349793]
[1753736051396,0.03,184.51,184.5,82.46344373]
[1753736051813,0.03,184.51,184.5,81.50912059]
[1753736052410,0.03,184.51,184.5,82.46344373]
[1753736053983,0.03,184.51,184.5,88.42550335]